fUST/lending_fUST_20250625
["ID","MTS","AMOUNT","RATE_DAILY","PERIOD"]
[367451010,1750801844073,-460.0,0.00016712,2]
[367451011,1750801844083,-460.0,0.00016712,2]
[367451012,1750801844092,-460.0,0.00016712,2]
[367451013,1750801844102,-460.0,0.00016712,2]
[367451014,1750801844111,-460.0,0.00016712,2]
[367451015,1750801844121,-460.0,0.00016712,2]
[367451016,1750801844131,-1108.8,0.00016712,2]
[367451017,1750801844140,-460.0,0.00016712,2]
[367451018,1750801844149,-460.0,0.00016712,2]
[367451019,1750801844159,-460.0,0.00016712,2]
[367451020,1750801844168,-460.0,0.00016712,2]
[367451021,1750801844178,-460.0,0.00016712,2]
[367451022,1750801844187,-460.0,0.00016712,2]
[367451023,1750801844196,-1304.51,0.00016712,2]
[367451024,1750801844206,-460.0,0.00016712,2]
[367451025,1750801844215,-460.0,0.00016712,2]
[367451026,1750801844224,-460.0,0.00016712,2]
[367451027,1750801844234,-460.0,0.00016712,2]
[367451028,1750801844244,-455.10402577,0.00016712,2]
[367451029,1750801844254,-460.0,0.00016712,2]
[367451030,1750801844264,-460.0,0.00016712,2]
[367451031,1750801844275,-460.0,0.00016712,2]
[367451032,1750801844285,-467.51,0.00016712,2]
[367451033,1750801844295,-1197.79,0.00016712,2]
[367451034,1750801844304,-460.0,0.00016712,2]
[367451035,1750801844314,-1095.89,0.00016712,2]
[367451036,1750801844323,-460.0,0.00016712,2]
[367451037,1750801844332,-460.0,0.00016712,2]
[367451038,1750801844342,-460.0,0.00016712,2]
[367451039,1750801844351,-460.0,0.00016712,2]
[367451040,1750801844360,-460.0,0.00016712,2]
[367451041,1750801844370,-460.0,0.00016712,2]
[367451042,1750801844379,-460.0,0.00016712,2]
[367451043,1750801844388,-460.0,0.00016712,2]
[367451044,1750801844398,-500.0,0.00016861,2]
[367451045,1750801844407,-500.0,0.0001693,2]
[367451046,1750801844417,-366.03665535,0.00016986,2]
[367451047,1750801844426,-460.0,0.00016986,2]
[367451048,1750801844436,-349.6016524,0.00016986,2]
[367451049,1750801844445,-460.0,0.00016986,2]
[367451050,1750801844455,-581.05847454,0.00016986,2]
[367451051,1750801844464,-460.0,0.00016986,2]
[367451052,1750801844474,-460.0,0.00016986,2]
[367451053,1750801844484,-460.0,0.00016986,2]
[367451054,1750801844494,-460.0,0.00016986,2]
[367451055,1750801844504,-460.0,0.00016986,2]
[367451057,1750801844514,-460.0,0.00016986,2]
[367451058,1750801844523,-460.0,0.00016986,2]
[367451059,1750801844532,-460.0,0.00016986,2]
[367451060,1750801844541,-460.0,0.00016986,2]
[367451061,1750801844551,-460.0,0.00016986,2]
[367451062,1750801844560,-460.0,0.00016986,2]
[367451063,1750801844569,-460.0,0.00016986,2]
[367451064,1750801844578,-460.0,0.00016986,2]
[367451065,1750801844587,-460.0,0.00016986,2]
[367451066,1750801844597,-460.0,0.00016986,2]
[367451067,1750801844607,-460.0,0.00016986,2]
[367451068,1750801844616,-460.0,0.00016986,2]
[367451069,1750801844626,-591.90547621,0.00016986,2]
[367451070,1750801844636,-460.0,0.00016986,2]
[367451071,1750801844645,-460.0,0.00016986,2]
[367451072,1750801844654,-460.0,0.00016986,2]
[367451073,1750801844664,-460.0,0.00016986,2]
[367451074,1750801844673,-151.0,0.00016986,2]
[367451075,1750801844683,-460.0,0.00016986,2]
[367451076,1750801844693,-460.0,0.00016986,2]
[367451077,1750801844703,-460.0,0.00016986,2]
[367451079,1750801844712,-460.0,0.00016986,2]
[367451081,1750801844722,-460.0,0.00016986,2]
[367451082,1750801844731,-151.0,0.00016986,2]
[367451083,1750801844740,-151.0,0.00016986,2]
[367451084,1750801844750,-151.0,0.00016986,2]
[367451085,1750801844759,-460.0,0.00016986,2]
[367451086,1750801844768,-460.0,0.00016986,2]
[367451087,1750801844778,-460.0,0.00016986,2]
[367451088,1750801844787,-151.0,0.00016986,2]
[367451089,1750801844797,-151.0,0.00016986,2]
[367451090,1750801844807,-460.0,0.00016986,2]
[367451091,1750801844816,-460.0,0.00016986,2]
[367451092,1750801844826,-460.0,0.00016986,2]
[367451093,1750801844835,-151.0,0.00016986,2]
[367451094,1750801844844,-151.0,0.00016986,2]
[367451095,1750801844854,-460.0,0.00016986,2]
[367451096,1750801844863,-204.522396,0.00016986,2]
[367451097,1750801844873,-153.213618,0.00016986,2]
[367451098,1750801844882,-453.17029561,0.00016986,2]
[367451099,1750801844891,-151.0,0.00016986,2]
[367451100,1750801844901,-460.0,0.00016986,2]
[367451101,1750801844911,-460.0,0.00016986,2]
[367451102,1750801844921,-460.0,0.00016986,2]
[367451103,1750801844931,-151.0,0.00016986,2]
[367451104,1750801844940,-151.0,0.00016986,2]
[367451105,1750801844949,-460.0,0.00016986,2]
[367451106,1750801844959,-460.0,0.00016986,2]
[367451107,1750801844968,-460.0,0.00016986,2]
[367451108,1750801844977,-220.59,0.00016986,2]
[367451109,1750801844987,-460.0,0.00016986,2]
[367451110,1750801844996,-460.0,0.00016986,2]
[367451111,1750801845005,-460.0,0.00016986,2]
[367451112,1750801845014,-460.0,0.00016986,2]
[367451113,1750801845024,-460.0,0.00016986,2]
[367451114,1750801845033,-460.0,0.00016986,2]
[367451115,1750801845043,-460.0,0.00016986,2]
[367451116,1750801845052,-737.12,0.00016986,2]
[367451117,1750801845061,-460.0,0.00016986,2]
[367451118,1750801845070,-173.29616574,0.00016986,2]
[367451120,1750801845080,-183.337364,0.00016986,2]
[367451121,1750801845089,-151.0,0.00016986,2]
[367451122,1750801845098,-183.337364,0.00016986,2]
[367451123,1750801845107,-1128.68,0.00016986,2]
[367451124,1750801845116,-151.0,0.00016986,2]
[367451125,1750801845125,-544.48,0.00016986,2]
[367451126,1750801845134,-279.499968,0.00016986,2]
[367451127,1750801845142,-460.0,0.00016986,2]
[367451128,1750801845152,-460.0,0.00016986,2]
[367451129,1750801845160,-279.499968,0.00016986,2]
[367451130,1750801845170,-460.0,0.00016986,2]
[367451131,1750801845179,-609.41,0.00016986,2]
[367451132,1750801845188,-460.0,0.00016986,2]
[367451133,1750801845197,-460.0,0.00016986,2]
[367451134,1750801845206,-440.0,0.00016986,2]
[367451135,1750801845215,-460.0,0.00016986,2]
[367451136,1750801845224,-538.08,0.00016986,2]
[367451137,1750801845233,-463.24,0.00016986,2]
[367451138,1750801845242,-460.0,0.00016986,2]
[367451139,1750801845252,-460.0,0.00016986,2]
[367451140,1750801845261,-460.0,0.00016986,2]
[367451141,1750801845274,-460.0,0.00016986,2]
[367451142,1750801845283,-374.47,0.00016986,2]
[367451143,1750801845292,-460.0,0.00016986,2]
[367451144,1750801845301,-460.0,0.00016986,2]
[367451145,1750801845311,-460.0,0.00016986,2]
[367451146,1750801845319,-460.0,0.00016986,2]
[367451147,1750801845329,-460.0,0.00016986,2]
[367451148,1750801845338,-460.0,0.00016986,2]
[367451149,1750801845348,-286.72,0.00016986,2]
[367451150,1750801845358,-460.0,0.00016986,2]
[367451151,1750801845367,-460.0,0.00016986,2]
[367451152,1750801845377,-688.74,0.00016986,2]
[367451153,1750801845387,-911.29,0.00016986,2]
[367451154,1750801845396,-460.0,0.00016986,2]
[367451155,1750801845405,-505.72296656,0.00016986,2]
[367451156,1750801845414,-460.0,0.00016986,2]
[367451157,1750801845423,-460.0,0.00016986,2]
[367451158,1750801845432,-460.0,0.00016986,2]
[367451159,1750801845441,-460.0,0.00016986,2]
[367451160,1750801845451,-460.0,0.00016986,2]
[367451161,1750801845460,-218.59765811,0.00016986,2]
[367451162,1750801845470,-1133.87,0.00016986,2]
[367451163,1750801845479,-460.0,0.00016986,2]
[367451164,1750801845487,-460.0,0.00016986,2]
[367451165,1750801845496,-460.0,0.00016986,2]
[367451166,1750801845506,-460.0,0.00016986,2]
[367451167,1750801845515,-460.0,0.00016986,2]
[367451168,1750801845525,-460.0,0.00016986,2]
[367451169,1750801845535,-460.0,0.00016986,2]
[367451171,1750801845545,-460.0,0.00016986,2]
[367451172,1750801845554,-460.0,0.00016986,2]
[367451173,1750801845564,-460.0,0.00016986,2]
[367451175,1750801845574,-460.0,0.00016986,2]
[367451177,1750801845583,-547.38,0.00016986,2]
[367451178,1750801845593,-460.0,0.00016986,2]
[367451180,1750801845603,-460.0,0.00016986,2]
[367451183,1750801845614,-460.0,0.00016986,2]
[367451184,1750801845624,-460.0,0.00016986,2]
[367451186,1750801845634,-151.0,0.00016986,2]
[367451189,1750801845643,-1108.8,0.00016986,2]
[367451191,1750801845653,-151.0,0.00016986,2]
[367451193,1750801845663,-389.13684585,0.00016986,2]
[367451194,1750801845672,-468.54,0.00016986,2]
[367451196,1750801845682,-151.0,0.00016986,2]
[367451199,1750801845691,-460.0,0.00016986,2]
[367451200,1750801845701,-468.20447785,0.00016986,2]
[367451203,1750801845711,-1304.51,0.00016986,2]
[367451204,1750801845720,-460.0,0.00016986,2]
[367451207,1750801845732,-460.0,0.00016986,2]
[367451209,1750801845742,-579.61225319,0.00016986,2]
[367451211,1750801845751,-440.0,0.00016986,2]
[367451213,1750801845762,-151.0,0.00016986,2]
[367451215,1750801845771,-460.0,0.00016986,2]
[367451217,1750801845781,-460.0,0.00016986,2]
[367451219,1750801845791,-1197.79,0.00016986,2]
[367451221,1750801845800,-460.0,0.00016986,2]
[367451223,1750801845812,-1095.89,0.00016986,2]
[367451225,1750801845821,-460.0,0.00016986,2]
[367451227,1750801845831,-460.0,0.00016986,2]
[367451229,1750801845840,-460.0,0.00016986,2]
[367451231,1750801845849,-460.0,0.00016986,2]
[367451233,1750801845859,-460.0,0.0001726,2]
[367451235,1750801845868,-460.0,0.0001726,2]
[367451237,1750801845878,-460.0,0.0001726,2]
[367451239,1750801845888,-460.0,0.0001726,2]
[367451241,1750801845897,-460.0,0.0001726,2]
[367451243,1750801845907,-460.0,0.0001726,2]
[367451245,1750801845918,-151.0,0.0001726,2]
[367451247,1750801845928,-151.0,0.0001726,2]
[367451249,1750801845938,-460.0,0.0001726,2]
[367451251,1750801845949,-460.0,0.0001726,2]
[367451253,1750801845958,-151.0,0.0001726,2]
[367451255,1750801845968,-151.0,0.0001726,2]
[367451257,1750801845978,-460.0,0.0001726,2]
[367451259,1750801845987,-460.0,0.0001726,2]
[367451261,1750801845997,-460.0,0.0001726,2]
[367451263,1750801846007,-460.0,0.0001726,2]
[367451265,1750801846017,-460.0,0.0001726,2]
[367451267,1750801846026,-460.0,0.0001726,2]
[367451270,1750801846037,-460.0,0.0001726,2]
[367451271,1750801846046,-150.21,0.0001726,2]
[367451274,1750801846056,-460.0,0.0001726,2]
[367451276,1750801846065,-460.0,0.0001726,2]
[367451278,1750801846075,-460.0,0.0001726,2]
[367451280,1750801846084,-737.12,0.0001726,2]
[367451282,1750801846094,-460.0,0.0001726,2]
[367451284,1750801846103,-1128.68,0.0001726,2]
[367451286,1750801846112,-460.0,0.0001726,2]
[367451288,1750801846122,-460.0,0.0001726,2]
[367451290,1750801846132,-538.08,0.0001726,2]
[367451292,1750801846142,-463.24,0.0001726,2]
[367451294,1750801846151,-460.0,0.0001726,2]
[367451296,1750801846161,-460.0,0.0001726,2]
[367451298,1750801846170,-460.0,0.0001726,2]
[367451300,1750801846180,-460.0,0.0001726,2]
[367451302,1750801846190,-601.94,0.0001726,2]
[367451304,1750801846200,-460.0,0.0001726,2]
[367451306,1750801846211,-460.0,0.0001726,2]
[367451308,1750801846221,-460.0,0.0001726,2]
[367451310,1750801846231,-688.74,0.0001726,2]
[367451312,1750801846240,-911.29,0.0001726,2]
[367451314,1750801846252,-460.0,0.0001726,2]
[367451316,1750801846261,-151.0,0.0001726,2]
[367451319,1750801846275,-460.0,0.0001726,2]
[367451321,1750801846285,-151.0,0.0001726,2]
[367451323,1750801846294,-460.0,0.0001726,2]
[367451325,1750801846303,-1133.87,0.0001726,2]
[367451327,1750801846313,-460.0,0.0001726,2]
[367451329,1750801846323,-177.74502,0.0001726,2]
[367451331,1750801846333,-460.0,0.0001726,2]
[367451333,1750801846346,-339.67707577,0.0001726,2]
[367451335,1750801846355,-460.0,0.0001726,2]
[367451337,1750801846365,-460.0,0.0001726,2]
[367451340,1750801846379,-460.0,0.0001726,2]
[367451342,1750801846388,-151.0,0.0001726,2]
[367451344,1750801846398,-460.0,0.0001726,2]
[367451346,1750801846408,-460.0,0.0001726,2]
[367451348,1750801846418,-547.38,0.0001726,2]
[367451350,1750801846429,-460.0,0.0001726,2]
[367451352,1750801846438,-460.0,0.0001726,2]
[367451354,1750801846449,-460.0,0.0001726,2]
[367451356,1750801846459,-1108.8,0.0001726,2]
[367451358,1750801846468,-460.0,0.0001726,2]
[367451360,1750801846477,-1304.51,0.0001726,2]
[367451362,1750801846487,-460.0,0.0001726,2]
[367451364,1750801846496,-490.31,0.0001726,2]
[367451366,1750801846506,-460.0,0.0001726,2]
[367451368,1750801846515,-460.0,0.0001726,2]
[367451370,1750801846526,-1197.79,0.0001726,2]
[367451372,1750801846535,-345.83358502,0.0001726,2]
[367451374,1750801846545,-1095.89,0.0001726,2]
[367451376,1750801846555,-460.0,0.0001726,2]
[367451378,1750801846564,-512.19,0.0001726,2]
[367451380,1750801846574,-460.0,0.0001726,2]
[367451382,1750801846585,-524.15841286,0.00017356,2]
[367451384,1750801846595,-160.0,0.00017356,2]
[367451386,1750801846604,-230.20892031,0.00017356,2]
[367451389,1750801846614,-160.0,0.00017356,2]
[367451391,1750801846624,-160.0,0.00017356,2]
[367451393,1750801846634,-425.14181427,0.00017356,2]
[367451394,1750801846644,-846.68469334,0.00017356,2]
[367451396,1750801846654,-836.80226758,0.00017356,2]
[367451398,1750801846663,-160.0,0.00017356,2]
[367451400,1750801846673,-213.66798275,0.00017356,2]
[367451403,1750801846683,-160.0,0.00017356,2]
[367451405,1750801846694,-160.0,0.00017356,2]
[367451406,1750801846704,-160.0,0.00017356,2]
[367451409,1750801846714,-12556.00642039,0.00017356,2]
[367451410,1750801846724,-1000.0,0.00017409,2]
[367451413,1750801846734,-1000.0,0.00017478,2]
[367451415,1750801846744,-151.0,0.00017492,2]
[367451417,1750801846754,-151.0,0.00017492,2]
[367451418,1750801846763,-151.0,0.00017492,2]
[367451420,1750801846773,-151.0,0.00017492,2]
[367451421,1750801846783,-151.0,0.00017492,2]
[367451423,1750801846792,-151.0,0.00017492,2]
[367451425,1750801846802,-151.0,0.00017492,2]
[367451427,1750801846812,-158.184494,0.00017492,2]
[367451429,1750801846821,-158.184494,0.00017492,2]
[367451431,1750801846832,-151.0,0.00017492,2]
[367451433,1750801846842,-151.0,0.00017492,2]
[367451435,1750801846851,-234.961675,0.00017492,2]
[367451437,1750801846861,-234.961675,0.00017492,2]
[367451439,1750801846871,-151.0,0.00017492,2]
[367451441,1750801846880,-360.330087,0.00017492,2]
[367451443,1750801846890,-360.330087,0.00017492,2]
[367451445,1750801846900,-460.0,0.00017534,2]
[367451447,1750801846910,-460.0,0.00017534,2]
[367451449,1750801846920,-151.0,0.00017534,2]
[367451451,1750801846930,-151.0,0.00017534,2]
[367451453,1750801846940,-151.0,0.00017534,2]
[367451455,1750801846949,-151.0,0.00017534,2]
[367451457,1750801846959,-460.0,0.00017534,2]
[367451459,1750801846969,-460.0,0.00017534,2]
[367451461,1750801846979,-460.0,0.00017534,2]
[367451463,1750801846988,-395.25,0.00017534,2]
[367451465,1750801846997,-410.68628301,0.00017534,2]
[367451467,1750801847007,-460.0,0.00017534,2]
[367451469,1750801847016,-584.23812289,0.00017534,2]
[367451472,1750801847036,-151.0,0.00017534,2]
[367451474,1750801847047,-460.0,0.00017534,2]
[367451476,1750801847057,-460.0,0.00017534,2]
[367451478,1750801847068,-737.12,0.00017534,2]
[367451480,1750801847078,-513.0,0.00017534,2]
[367451482,1750801847089,-1128.68,0.00017534,2]
[367451484,1750801847100,-279.499968,0.00017534,2]
[367451486,1750801847110,-383.17,0.00017534,2]
[367451488,1750801847120,-279.499968,0.00017534,2]
[367451490,1750801847131,-460.0,0.00017534,2]
[367451492,1750801847142,-538.08,0.00017534,2]
[367451495,1750801847153,-463.24,0.00017534,2]
[367451497,1750801847163,-460.0,0.00017534,2]
[367451499,1750801847173,-460.0,0.00017534,2]
[367451501,1750801847183,-460.0,0.00017534,2]
[367451503,1750801847194,-460.0,0.00017534,2]
[367451505,1750801847204,-688.74,0.00017534,2]
[367451507,1750801847214,-911.29,0.00017534,2]
[367451509,1750801847224,-460.0,0.00017534,2]
[367451511,1750801847235,-460.0,0.00017534,2]
[367451513,1750801847246,-460.0,0.00017534,2]
[367451515,1750801847257,-1133.87,0.00017534,2]
[367451517,1750801847272,-460.0,0.00017534,2]
[367451535,1750801847420,-460.0,0.00017534,2]
[367451537,1750801847444,-460.0,0.00017534,2]
[367451539,1750801847454,-547.38,0.00017534,2]
[367451541,1750801847462,-460.0,0.00017534,2]
[367451543,1750801847471,-460.0,0.00017534,2]
[367451545,1750801847480,-460.0,0.00017534,2]
[367451547,1750801847489,-1108.8,0.00017534,2]
[367451548,1750801847499,-460.0,0.00017534,2]
[367451550,1750801847508,-1304.51,0.00017534,2]
[367451552,1750801847517,-460.0,0.00017534,2]
[367451554,1750801847526,-460.0,0.00017534,2]
[367451556,1750801847535,-1197.79,0.00017534,2]
[367451558,1750801847544,-1095.89,0.00017534,2]
[367451560,1750801847554,-574.63,0.00017534,2]
[367451562,1750801847563,-845.74,0.00017798,3]
[367451564,1750801847572,-151.477412,0.00017808,2]
[367451566,1750801847581,-151.0,0.00017808,2]
[367451568,1750801847590,-460.0,0.00017808,2]
[367451570,1750801847599,-541.43,0.00017808,2]
[367451572,1750801847608,-151.0,0.00017808,2]
[367451574,1750801847617,-365.66,0.00017808,2]
[367451576,1750801847627,-460.0,0.00017808,2]
[367451578,1750801847637,-151.0,0.00017808,2]
[367451580,1750801847646,-152.214834,0.00017808,2]
[367451582,1750801847655,-151.0,0.00017808,2]
[367451584,1750801847664,-151.0,0.00017808,2]
[367451586,1750801847674,-151.0,0.00017808,2]
[367451588,1750801847683,-460.0,0.00017808,2]
[367451590,1750801847692,-151.0,0.00017808,2]
[367451592,1750801847701,-151.0,0.00017808,2]
[367451594,1750801847711,-460.0,0.00017808,2]
[367451596,1750801847721,-737.12,0.00017808,2]
[367451598,1750801847730,-183.337364,0.00017808,2]
[367451600,1750801847743,-513.0,0.00017808,2]
[367451602,1750801847760,-151.0,0.00017808,2]
[367451604,1750801847770,-183.337364,0.00017808,2]
[367451606,1750801847779,-1128.68,0.00017808,2]
[367451608,1750801847789,-189.914445,0.00017808,2]
[367451610,1750801847799,-460.0,0.00017808,2]
[367451612,1750801847808,-538.08,0.00017808,2]
[367451614,1750801847817,-463.24,0.00017808,2]
[367451616,1750801847826,-460.0,0.00017808,2]
[367451618,1750801847835,-460.0,0.00017808,2]
[367451619,1750801847844,-460.0,0.00017808,2]
[367451621,1750801847854,-688.74,0.00017808,2]
[367451623,1750801847863,-911.29,0.00017808,2]
[367451625,1750801847872,-460.0,0.00017808,2]
[367451627,1750801847882,-460.0,0.00017808,2]
[367451629,1750801847891,-1133.87,0.00017808,2]
[367451631,1750801847900,-460.0,0.00017808,2]
[367451633,1750801847909,-414.53,0.00017808,2]
[367451635,1750801847919,-547.38,0.00017808,2]
[367451637,1750801847928,-460.0,0.00017808,2]
[367451639,1750801847937,-460.0,0.00017808,2]
[367451641,1750801847946,-460.0,0.00017808,2]
[367451643,1750801847956,-151.0,0.00017808,2]
[367451645,1750801847966,-1108.8,0.00017808,2]
[367451647,1750801847975,-153.302752,0.00017808,2]
[367451649,1750801847984,-460.0,0.00017808,2]
[367451651,1750801847994,-1304.51,0.00017808,2]
[367451653,1750801848003,-151.0,0.00017808,2]
[367451655,1750801848013,-562.07,0.00017808,2]
[367451657,1750801848022,-1197.79,0.00017808,2]
[367451659,1750801848031,-1095.89,0.00017808,2]
[367451661,1750801848040,-420.0,0.00017853,2]
[367451663,1750801848049,-420.0,0.00017855,2]
[367451665,1750801848058,-177.31747365,0.00017906,2]
[367451667,1750801848067,-1120.0,0.00017942,2]
[367451668,1750801848077,-1500.0,0.00017957,2]
[367451670,1750801848087,-1500.0,0.00018026,2]
[367451673,1750801848096,-422.88,0.00018072,3]
[367451675,1750801848105,-151.0,0.00018082,2]
[367451677,1750801848114,-151.0,0.00018082,2]
[367451679,1750801848123,-472.39,0.00018082,2]
[367451681,1750801848133,-151.0,0.00018082,2]
[367451683,1750801848142,-460.0,0.00018082,2]
[367451684,1750801848151,-460.0,0.00018082,2]
[367451687,1750801848160,-460.0,0.00018082,2]
[367451688,1750801848170,-737.12,0.00018082,2]
[367451690,1750801848179,-513.0,0.00018082,2]
[367451692,1750801848188,-151.0,0.00018082,2]
[367451694,1750801848197,-1128.68,0.00018082,2]
[367451696,1750801848206,-151.0,0.00018082,2]
[367451698,1750801848215,-460.0,0.00018082,2]
[367451700,1750801848224,-538.08,0.00018082,2]
[367451702,1750801848233,-463.24,0.00018082,2]
[367451704,1750801848242,-460.0,0.00018082,2]
[367451706,1750801848251,-460.0,0.00018082,2]
[367451708,1750801848261,-460.0,0.00018082,2]
[367451709,1750801848277,-688.74,0.00018082,2]
[367451710,1750801848286,-911.29,0.00018082,2]
[367451711,1750801848296,-460.0,0.00018082,2]
[367451712,1750801848305,-151.0,0.00018082,2]
[367451713,1750801848314,-460.0,0.00018082,2]
[367451714,1750801848323,-151.0,0.00018082,2]
[367451715,1750801848333,-1133.87,0.00018082,2]
[367451716,1750801848344,-586.01,0.00018082,2]
[367451717,1750801848353,-151.0,0.00018082,2]
[367451718,1750801848363,-547.38,0.00018082,2]
[367451719,1750801848372,-460.0,0.00018082,2]
[367451720,1750801848382,-460.0,0.00018082,2]
[367451721,1750801848391,-460.0,0.00018082,2]
[367451722,1750801848400,-1108.8,0.00018082,2]
[367451723,1750801848410,-460.0,0.00018082,2]
[367451724,1750801848419,-1304.51,0.00018082,2]
[367451725,1750801848428,-1197.79,0.00018082,2]
[367451726,1750801848438,-1095.89,0.00018082,2]
[367451728,1750801848447,-12556.00642039,0.00018082,7]
[367451729,1750801848455,-524.15841286,0.00018082,7]
[367451730,1750801848464,-846.68469334,0.00018082,7]
[367451732,1750801848474,-213.66798275,0.00018082,7]
[367451734,1750801848483,-151.0,0.00018356,2]
[367451736,1750801848492,-151.0,0.00018356,2]
[367451738,1750801848501,-460.0,0.00018356,2]
[367451740,1750801848510,-460.0,0.00018356,2]
[367451742,1750801848520,-737.12,0.00018356,2]
[367451744,1750801848529,-513.0,0.00018356,2]
[367451746,1750801848538,-1128.68,0.00018356,2]
[367451748,1750801848547,-460.0,0.00018356,2]
[367451750,1750801848556,-538.08,0.00018356,2]
[367451752,1750801848568,-463.24,0.00018356,2]
[367451754,1750801848577,-355.27,0.00018356,2]
[367451756,1750801848587,-460.0,0.00018356,2]
[367451758,1750801848595,-460.0,0.00018356,2]
[367451760,1750801848605,-688.74,0.00018356,2]
[367451761,1750801848614,-911.29,0.00018356,2]
[367451763,1750801848623,-460.0,0.00018356,2]
[367451765,1750801848633,-460.0,0.00018356,2]
[367451767,1750801848642,-1133.87,0.00018356,2]
[367451769,1750801848653,-547.38,0.00018356,2]
[367451771,1750801848662,-460.0,0.00018356,2]
[367451773,1750801848671,-460.0,0.00018356,2]
[367451775,1750801848681,-1108.8,0.00018356,2]
[367451777,1750801848690,-460.0,0.00018356,2]
[367451780,1750801848700,-1304.51,0.00018356,2]
[367451782,1750801848710,-1197.79,0.00018356,2]
[367451783,1750801848719,-1095.89,0.00018356,2]
[367451785,1750801848728,-2000.0,0.00018505,2]
[367451787,1750801848738,-234.08,0.0001863,2]
[367451789,1750801848748,-460.0,0.0001863,2]
[367451791,1750801848758,-737.12,0.0001863,2]
[367451794,1750801848768,-513.0,0.0001863,2]
[367451795,1750801848777,-1128.68,0.0001863,2]
[367451797,1750801848787,-460.0,0.0001863,2]
[367451799,1750801848796,-538.08,0.0001863,2]
[367451801,1750801848806,-463.24,0.0001863,2]
[367451803,1750801848815,-151.0,0.0001863,2]
[367451805,1750801848825,-151.0,0.0001863,2]
[367451807,1750801848834,-158.184494,0.0001863,2]
[367451809,1750801848845,-158.184494,0.0001863,2]
[367451811,1750801848856,-151.0,0.0001863,2]
[367451813,1750801848865,-541.21,0.0001863,2]
[367451815,1750801848875,-234.961675,0.0001863,2]
[367451817,1750801848885,-234.961675,0.0001863,2]
[367451819,1750801848895,-160.65,0.0001863,2]
[367451821,1750801848904,-151.0,0.0001863,2]
[367451823,1750801848913,-688.74,0.0001863,2]
[367451825,1750801848922,-911.29,0.0001863,2]
[367451827,1750801848931,-460.0,0.0001863,2]
[367451829,1750801848941,-460.0,0.0001863,2]
[367451831,1750801848950,-1133.87,0.0001863,2]
[367451833,1750801848960,-360.330087,0.0001863,2]
[367451835,1750801848970,-360.330087,0.0001863,2]
[367451837,1750801848979,-547.38,0.0001863,2]
[367451839,1750801848988,-460.0,0.0001863,2]
[367451841,1750801848997,-460.0,0.0001863,2]
[367451843,1750801849006,-1108.8,0.0001863,2]
[367451845,1750801849016,-460.0,0.0001863,2]
[367451847,1750801849026,-1304.51,0.0001863,2]
[367451849,1750801849035,-1197.79,0.0001863,2]
[367451851,1750801849044,-1095.89,0.0001863,2]